Cogmind - Beta 10.2 @@@ ROGUE MODE // 2021.01.05 @ 17:44:44 Player: Luigi Panache Result: Self-destructed Performance ------------- Evolutions (3) 1500 Regions Visited (6) 1200 Robots Destroyed (37) 185 Value Destroyed (1094) 1094 Prototype IDs (24) 480 Alien Tech Used (0) 0 Bonus (385) 385 TOTAL SCORE: 4844 Bonus ------- Follower Combat Kills 85 Aligned with FarCom 300 Cogmind --------- Core Integrity 700/700 Matter 238/300 Energy 70/125 System Corruption 0% Temperature Cool (0) Movement Rolling (130) Ox5 Location -7/Factory Parts ------- > --- POWER (1) -------- Light Ion Engine > --- PROPULSION (2) --- Wheel Wheel > --- UTILITY (8) ------ Humpback Advanced Targeting Computer Propulsion Shielding Light Armor Plating Medium Armor Plating Hardened Medium Armor Plating > --- WEAPON (2) ------- Improved EM Pulse Cannon Autogun > --- INVENTORY (24) --- Advanced Treads Wheel Large Storage Unit Large Storage Unit High-capacity Storage Unit Improved Terrain Scan Processor Light Armor Plating Reactive Plating Improved Medium Laser Improved Medium Laser Light Assault Rifle Light Assault Rifle Autogun Autogun Missile Launcher Missile Launcher Missile Launcher Missile Launcher Missile Launcher Missile Launcher Missile Launcher Katana Signal Generator Peak State ------------ > --- POWER ------------ (None) > --- PROPULSION ------- Wheel Wheel > --- UTILITY ---------- Humpback Propulsion Shielding Propulsion Shielding Light Armor Plating > --- WEAPON ----------- AWS/Gauss > --- INVENTORY -------- Light Ion Engine Advanced Treads Wheel High-capacity Storage Unit Medium Matter Pod Improved Terrain Scan Processor Improved Medium Laser Improved Medium Laser Light Assault Rifle Light Assault Rifle Autogun Autogun Autogun Autogun Signal Generator [Rating: 26] Favorites ----------- Power Ion Engine Engine Ion Engine Propulsion Light Treads Treads Light Treads Leg Aluminum Leg Wheel Wheel Utility Propulsion Shielding Device Improved Terrain Scanner Storage Humpback Processor Advanced Targeting Computer Protection Propulsion Shielding Weapon Autogun Energy Gun Improved Medium Laser Energy Cannon Improved EM Pulse Cannon Ballistic Gun Autogun Build | -11 -10 -10 -10 -9 -8 -7 ------- Run | Scr Mat Min Exi Min Mat Fac Slots Evolved 6 | . . . . . 4 2 Power . | . . . . . . . Propulsion . | . . . . . . . Utility 6 | . . . . . 4 2 Weapon . | . . . . . . . Parts Attached 25 | 3 4 . 1 . 14 3 Power 1 | . . . . . . 1 Engine 1 | . . . . . . 1 Core . | . . . . . . . Reactor . | . . . . . . . Propulsion 4 | 2 . . . . 2 . Treads 2 | 2 . . . . . . Leg . | . . . . . . . Wheel 2 | . . . . . 2 . Hover . | . . . . . . . Flight . | . . . . . . . Utility 11 | 1 2 . 1 . 6 1 Device 1 | 1 . . . . . . Storage 2 | . 1 . 1 . . . Processor 1 | . . . . . 1 . Hackware . | . . . . . . . Protection 7 | . 1 . . . 5 1 Artifact . | . . . . . . . Weapon 9 | . 2 . . . 6 1 Energy Gun 1 | . . . . . 1 . Energy Cannon 1 | . . . . . . 1 Ballistic Gun 7 | . 2 . . . 5 . Ballistic Cannon . | . . . . . . . Launcher . | . . . . . . . Special Weapon . | . . . . . . . Impact Weapon . | . . . . . . . Slashing Weapon . | . . . . . . . Piercing Weapon . | . . . . . . . Special Melee Weapon . | . . . . . . . Unidentified Prototypes 1 | . . . . . 1 . Parts Lost 4 | . . . . . 4 . Power 1 | . . . . . 1 . Propulsion 1 | . . . . . 1 . Utility . | . . . . . . . Weapon 2 | . . . . . 2 . Highest Loss Streak 4 | . . . . . 4 . Average Slot Usage (%) 85 | . 100 100 93 85 67 75 Engine 8 | . 14 14 14 14 . . Treads 17 | . 28 28 28 28 2 . Wheel 5 | . . . . . 14 15 Device 1 | . 6 . . . . . Storage 11 | . 14 14 14 14 9 7 Processor 1 | . . . . . 3 7 Protection 15 | . 7 14 8 . 23 29 Ballistic Gun 22 | . 28 28 28 28 14 14 Naked Turns . | . . . . . . . Heaviest Build 105 | 12 44 44 91 91 99 105 Greatest Support 40 | 40 40 40 40 40 40 20 Greatest Overweight (x) 5 | . 1 1 2 2 4 5 Average Overweight (x) 2 | . . 1 1 2 3 4 Largest Inventory Capacity 24 | 6 12 12 24 24 24 24 Average Capacity 17 | 6 8 12 17 24 24 24 Most Carried 24 | 6 8 10 14 14 24 24 Average Carried 13 | 5 6 9 11 14 18 23 Final Capacity 24 | 6 12 12 24 24 24 24 Final Carried 24 | 6 8 10 14 14 24 23 Class Distribution -------------------- 50% | Hauler-Mutant 49% | Mutant Dominant Class ---------------- Mutant | -10/Materials Mutant | -10/Mines Mutant | -10/Exiles Hauler-Mutant | -9/Mines Hauler-Mutant | -8/Materials Hauler-Mutant | -7/Factory Resources | -11 -10 -10 -10 -9 -8 -7 ----------- Run | Scr Mat Min Exi Min Mat Fac Matter Collected 1016 | 244 200 212 10 . 350 . Remotely . | . . . . . . . Salvage Created 1412 | 117 248 150 . . 897 . Parts 87 | 7 21 4 . 1 54 . Haulers Intercepted 1 | . 1 . . . . . Recyclers Shooed 1 | . . . . . 1 . Parts Field Recycled . | . . . . . . . Retrieved Matter . | . . . . . . . Parts Self-Destructed . | . . . . . . . Prevented . | . . . . . . . Kills | -11 -10 -10 -10 -9 -8 -7 ------- Run | Scr Mat Min Exi Min Mat Fac Combat Hostiles Destroyed 27 | . 7 3 . . 17 . Guns 27 | . 7 3 . . 17 . Classes Destroyed 10 | 2 4 2 . . 2 . Worker 1 | . . 1 . . . . Builder 1 | . . 1 . . . . Tunneler 2 | 1 . . . 1 . . Hauler 1 | . 1 . . . . . Recycler 1 | 1 . . . . . . Watcher 4 | . 1 . . . 3 . Swarmer 6 | . 3 . . . 3 . Grunt 15 | . 4 3 . . 8 . Duelist 1 | . . . . . 1 . Sentry 5 | . . . . . 5 . Best Kill Streak 6 | 1 3 2 . 1 6 . Combat Bots Only 5 | . 3 2 . . 5 . Max Kills in Single Turn 2 | 1 2 2 . 1 1 . Gunslinging 1 | . 1 . . . . . Exploded . | . . . . . . . Melee . | . . . . . . . Uniques/NPCs Destroyed . | . . . . . . . Combat | -11 -10 -10 -10 -9 -8 -7 -------- Run | Scr Mat Min Exi Min Mat Fac Damage Taken 1087 | . 117 202 . . 768 . Core 186 | . 20 12 . . 154 . Absorbed by Shields . | . . . . . . . Core Remaining (%) 86 | 100 . . . 87 72 . Volleys Fired 74 | 7 21 14 . . 28 4 Largest 2 | 2 2 2 . . 2 2 Hottest 46 | 40 46 46 . . 46 46 Shots Fired 184 | 14 42 28 . . 92 8 Gun 184 | 14 42 28 . . 92 8 Cannon . | . . . . . . . Launcher . | . . . . . . . Special . | . . . . . . . Kinetic 184 | 14 42 28 . . 92 8 Thermal . | . . . . . . . Explosive . | . . . . . . . Electromagnetic . | . . . . . . . Robot Hit Streak 18 | 4 12 13 . . 18 5 Robot Miss Streak 2 | 1 2 2 . . 2 2 Penetration Max . | . . . . . . . Secondary Targets 3 | . 1 1 . . 1 . Max Gunslinging Chain 1 | . 1 1 . . 1 . Autonomous 38 | . . . . . 38 . Shots Hit Robots 130 | 9 28 20 . . 67 6 Core Hits 52 | 5 10 6 . . 30 1 Critical Hits 3 | . . 1 . . 2 . Critical Kills . | . . . . . . . Critical Parts Destroyed 3 | . . 1 . . 2 . Melee Attacks . | . . . . . . . Impact . | . . . . . . . Slashing . | . . . . . . . Piercing . | . . . . . . . Sneak Attacks . | . . . . . . . Combat Hostiles . | . . . . . . . Follow-up Attacks . | . . . . . . . Damage Inflicted 2419 | 59 421 323 . 27 1513 76 Guns 2388 | 59 417 323 . . 1513 76 Cannons . | . . . . . . . Explosions . | . . . . . . . Melee . | . . . . . . . Ramming 31 | . 4 . . 27 . . Kinetic 2388 | 59 417 323 . . 1513 76 Thermal . | . . . . . . . Explosive . | . . . . . . . Electromagnetic . | . . . . . . . Impact . | . . . . . . . Slashing . | . . . . . . . Piercing . | . . . . . . . Highest Corruption 1 | . 1 1 1 1 . . Average Corruption 1 | . 1 1 1 1 . . Corruption Purged . | . . . . . . . Effects 6 | . 4 . 1 1 . . Message Errors 3 | . 2 . 1 . . . Energy Discharges 1 | . . . . 1 . . Data Loss (minor) 1 | . 1 . . . . . Targeting Errors 1 | . 1 . . . . . Overload Shots . | . . . . . . . Overflow Damage 7 | . . . . 7 . . Projectiles . | . . . . . . . Explosions . | . . . . . . . Melee 7 | . . . . 7 . . Knockbacks . | . . . . . . . Impact . | . . . . . . . Kinetic . | . . . . . . . Secondary . | . . . . . . . Self-Inflicted Damage . | . . . . . . . Shots . | . . . . . . . Rammed 2 | . 2 . . . . . Targets Rammed 4 | . 2 1 . 1 . . Kicked . | . . . . . . . Crushed 2 | . . 1 . 1 . . Highest Temperature 48 | . 24 48 . . 18 . Average Temperature 11 | . 8 17 . . 6 . Received Heat Transfer 411 | . 54 114 . . 243 . Siege Activations . | . . . . . . . Robots Corrupted . | . . . . . . . Combat Hostiles . | . . . . . . . Parts Fried . | . . . . . . . Impact Corruptions 1 | . . . . 1 . . Robots Melted . | . . . . . . . Combat Hostiles . | . . . . . . . Parts Melted . | . . . . . . . Heat Transferred . | . . . . . . . Parts Sabotaged . | . . . . . . . Parts Stolen . | . . . . . . . Parts Stripped . | . . . . . . . Power Chain Reactions . | . . . . . . . Missiles Intercepted . | . . . . . . . Alert | -11 -10 -10 -10 -9 -8 -7 ------- Run | Scr Mat Min Exi Min Mat Fac Peak Influence 323 | 10 150 139 . 5 323 99 Initial 84 | . 6 33 . . 1 84 Average 113 | 5 73 55 . 1 185 89 Maximum Alert Level 1 | . . . . . 1 . Low Security (%) 87 | 100 100 100 . 100 70 100 Level 1 12 | . . . . . 29 . Level 2 . | . . . . . . . Level 3 . | . . . . . . . Level 4 . | . . . . . . . Level 5 . | . . . . . . . High Security . | . . . . . . . Max Security . | . . . . . . . Squads Dispatched 3 | . 3 . . . . . Investigation 1 | . 1 . . . . . Extermination . | . . . . . . . Reinforcement 2 | . 2 . . . . . Assault . | . . . . . . . Garrison . | . . . . . . . Intercept . | . . . . . . . Construction Impeded . | . . . . . . . Haulers Reinforced . | . . . . . . . Stealth | -11 -10 -10 -10 -9 -8 -7 --------- Run | Scr Mat Min Exi Min Mat Fac Distress Signals 4 | . 1 . . . 3 . Communications Jammed . | . . . . . . . Distress Signals . | . . . . . . . Times Spotted 39 | . 13 6 . . 19 1 Peak Tracking Total 4 | . 4 2 . . 4 1 Tactical Retreats 1 | . . . . . 1 . Traps | -11 -10 -10 -10 -9 -8 -7 ------- Run | Scr Mat Min Exi Min Mat Fac Traps Triggered 1 | . 1 . . . . . Indirectly . | . . . . . . . Trap Hack Attempts . | . . . . . . . Triggered . | . . . . . . . Disarmed . | . . . . . . . Reprogrammed . | . . . . . . . Reused . | . . . . . . . Traps Extracted . | . . . . . . . Installed . | . . . . . . . Triggered . | . . . . . . . Machines | -11 -10 -10 -10 -9 -8 -7 ---------- Run | Scr Mat Min Exi Min Mat Fac Machines Disabled . | . . . . . . . Max in Single Turn . | . . . . . . . Machines Sabotaged . | . . . . . . . Garrisons Compromised . | . . . . . . . Overloaded Fab Kills . | . . . . . . . Fab Network Shutdowns . | . . . . . . . Hacking | -11 -10 -10 -10 -9 -8 -7 --------- Run | Scr Mat Min Exi Min Mat Fac Machines Accessed 12 | . 3 . 2 . 7 . Terminals 9 | . 2 . . . 7 . Fabricators . | . . . . . . . Repair Stations . | . . . . . . . Recycling Units 1 | . 1 . . . . . Scanalyzers . | . . . . . . . Garrison Access . | . . . . . . . Total Hacks 27 | . 5 . 2 . 20 . Successful 11 | . . . 2 . 9 . Failed 16 | . 5 . . . 11 . Catastrophic 4 | . 2 . . . 2 . Database Lockouts . | . . . . . . . Manual 25 | . 5 . 1 . 19 . Terminals 23 | . 3 . . . 20 . Fabricators . | . . . . . . . Repair Stations . | . . . . . . . Recycling Units 2 | . 2 . . . . . Scanalyzers . | . . . . . . . Garrison Access . | . . . . . . . Terminal Hacks 5 | . . . 2 . 3 . Record 1 | . . . 1 . . . Terminal Index 1 | . . . . . 1 . Garrison Index 1 | . . . . . 1 . Alert Level 1 | . . . . . 1 . EX-Prototype ID Bank 1 | . . . 1 . . . Fabricator Hacks . | . . . . . . . Repair Station Hacks . | . . . . . . . Recycling Unit Hacks . | . . . . . . . Scanalyzer . | . . . . . . . Garrison Access Hacks . | . . . . . . . Unauthorized Hacks 6 | . . . . . 6 . Terminals 6 | . . . . . 6 . Botnet 6 | . . . . . 6 . Fabricators . | . . . . . . . Repair Stations . | . . . . . . . Recycling Units . | . . . . . . . Scanalyzers . | . . . . . . . Garrison Access . | . . . . . . . Data Cores Recovered . | . . . . . . . Used . | . . . . . . . Hacking Detections 9 | . 3 . . . 6 . Full Trace Events 2 | . 1 . . . 1 . Feedback Events 1 | . 1 . . . . . Corruption 1 | . 1 . . . . . Feedback Blocked . | . . . . . . . Robot Schematics Acquired . | . . . . . . . Robots Built . | . . . . . . . Matter . | . . . . . . . Time . | . . . . . . . Total Robot Build Rating . | . . . . . . . Part Schematics Acquired . | . . . . . . . Parts Built . | . . . . . . . Matter . | . . . . . . . Time . | . . . . . . . Total Part Build Rating . | . . . . . . . Parts Repaired . | . . . . . . . Time . | . . . . . . . Parts Recycled . | . . . . . . . Recycled Matter . | . . . . . . . Retrieved Matter . | . . . . . . . Retrieved Components . | . . . . . . . Parts Scanalyzed . | . . . . . . . Part Schematics Acquired . | . . . . . . . Parts Damaged . | . . . . . . . Bothacking | -11 -10 -10 -10 -9 -8 -7 ------------ Run | Scr Mat Min Exi Min Mat Fac Used RIF Installer . | . . . . . . . Robots Hacked . | . . . . . . . Non-combat . | . . . . . . . Combat . | . . . . . . . Robot Hacks Applied . | . . . . . . . Relay Couplers Released . | . . . . . . . Robots Rewired . | . . . . . . . Allies Hacked . | . . . . . . . Hacks Repelled . | . . . . . . . Allies | -11 -10 -10 -10 -9 -8 -7 -------- Run | Scr Mat Min Exi Min Mat Fac Total Allies 2 | . . 2 . . . . Largest Group 2 | . . 2 . . . . Highest-Rated Group 47 | . . 47 . . . . Highest-Rated Ally 31 | . . 31 . . . . Total Orders . | . . . . . . . Ally Attacks 13 | . . 13 . . . . Total Damage 255 | . . 255 . . . . Kills 3 | . . 3 . . . . Allies Corrupted . | . . . . . . . Allies Melted . | . . . . . . . Intel | -11 -10 -10 -10 -9 -8 -7 ------- Run | Scr Mat Min Exi Min Mat Fac Robot Analysis Total . | . . . . . . . Derelict Logs Recovered 2 | . . 2 . . . . Drone Launches . | . . . . . . . Drone Recoveries . | . . . . . . . Exploration | -11 -10 -10 -10 -9 -8 -7 ------------- Run | Scr Mat Min Exi Min Mat Fac Turns Passed 3259 | 87 599 587 595 62 1118 211 Spaces Moved 1852 | 39 317 289 310 31 714 152 Core . | . . . . . . . Treads 1069 | 38 317 289 310 31 84 . Legs 1 | 1 . . . . . . Wheels 782 | . . . . . 630 152 Hover . | . . . . . . . Flight . | . . . . . . . Fastest Speed 120 | 120 160 180 180 200 120 120 Average Speed 156 | 158 167 180 187 200 132 128 Slowest Speed 240 | 160 180 180 200 200 240 130 Overloaded Moves . | . . . . . . . Propulsion Burnouts . | . . . . . . . Robots Hopped . | . . . . . . . Cave-ins Triggered . | . . . . . . . Exploration Rate (%) 36 | 4 52 65 71 8 51 6 Regions Visited 6 Branch Regions 3 Pre-discovered Areas 2 | . . 1 1 . . . Known Exits Taken 1 | . . . . . 1 . Unknown Exits Taken 5 | 1 1 1 1 1 . . Scrap Searched 1 | . . 1 . . . . Spaces Dug . | . . . . . . . Terrain Destroyed 13 | . . . . . 13 . Melee . | . . . . . . . Projectile 13 | . . . . . 13 . AOE . | . . . . . . . Terrain Rammed . | . . . . . . . Walls Destroyed . | . . . . . . . Machines Disabled . | . . . . . . . Actions | -11 -10 -10 -10 -9 -8 -7 --------- Run | Scr Mat Min Exi Min Mat Fac Total 2101 | 52 356 333 324 31 845 160 Wait 91 | . 1 28 . . 62 . Move 1846 | 38 316 288 309 30 713 152 Hop . | . . . . . . . Pick Up 39 | 2 5 2 12 . 18 . Fast Attach 10 | 1 1 . . . 6 2 Attach 9 | . . . 1 . 7 1 Detach 3 | . . . . . 3 . Swap 6 | 2 3 . . . 1 . Drop 19 | 2 7 . 2 . 7 1 Fire 74 | 7 21 14 . . 28 4 Melee . | . . . . . . . Ram . | . . . . . . . Kick . | . . . . . . . Crush 4 | . 2 1 . 1 . . Escape Stasis . | . . . . . . . Rewire . | . . . . . . . Trap . | . . . . . . . Miscellaneous . | . . . . . . . Route ------- -11/Scrapyard -10/Materials (discovered 3 exits: [*Mat x2] / [*Min]) -10/Mines (discovered 3 exits: [*Mat x2] / *Exi) -10/Exiles -9/Mines -8/Materials (discovered 3 exits: *Fac x3) -7/Factory History --------- Turn | Location | Event 1 | -11/Scrapyard | Discovered new exit (range 1) 88 | -11/Scrapyard | Entered Materials 178 | -10/Materials | Discovered new exit (range 8) 252 | -10/Materials | Discovered new exit (range 8) 318 | -10/Materials | Build established: Mutant 529 | -10/Materials | Discovered new exit (range 11) 687 | -10/Materials | Entered Mines 748 | -10/Mines | Learned location of 1 exit from Materials 784 | -10/Mines | Learned location of Zion (-7) 824 | -10/Mines | Discovered new exit (range 15) 908 | -10/Mines | Met a Derelict testing a Signal Generator 936 | -10/Mines | Found Signal Generator 1225 | -10/Mines | Discovered new exit (range 9) 1267 | -10/Mines | Deemed a non-threat by the Exiles lab entrance 1267 | -10/Mines | Discovered new exit (range 5) 1274 | -10/Mines | Entered Exiles 1323 | -10/Exiles | Met 8R-AWN 1348 | -10/Exiles | Met EX-HEX 1446 | -10/Exiles | Met EX-DEC 1536 | -10/Exiles | Met EX-BIN 1562 | -10/Exiles | Aligned with FarCom system 1563 | -10/Exiles | Given EX-Vault access code 1607 | -10/Exiles | Opened EX-Vault 1658 | -10/Exiles | Found AWS/Gauss 1699 | -10/Exiles | Warned to stay clear of 0b10 Research branches 1700 | -10/Exiles | Exiles lab attacked by MAIN.C 1853 | -10/Exiles | Discovered new exit (range 10) 1869 | -10/Exiles | Left Exiles lab with AWS/Gauss 1869 | -10/Exiles | Entered Mines 1903 | -9/Mines | Met a Derelict bent on vengeance 1921 | -9/Mines | Build established: Hauler-Mutant 1923 | -9/Mines | Discovered new exit (range 4) 1931 | -9/Mines | Entered Materials 1931 | -8/Materials | Evolved 4 slots: Utility x4 1932 | -8/Materials | Identified exit to Factory 2066 | -8/Materials | Lost 4 parts (1p1n2w) 2215 | -8/Materials | Discovered exit to Factory (range 15) 2469 | -8/Materials | Discovered exit to Factory (range 16) 3049 | -8/Materials | Entered Factory 3049 | -7/Factory | Evolved 2 slots: Utility x2 3260 | -7/Factory | Self-destructed Last Messages --------------- Awaiting botnet instructions. 02899_ Connecting with Terminal... >>Trojan(Botnet) Trojan loaded successfully. Testing... Terminal linked with 4 systems. Awaiting botnet instructions. >>Index(Garrisons) No garrison accesses found. 02922_ Dropped Lgt. Treads. 02923_ Acquired Reactive Plating. 02947_ K-01 Serf cleans the Material Compactor. PARAMETERS=UTILITY_2 LOCATION=FACTORY GOAL=ESCAPE 03049_ Receiving FarCom transmissions... 03078_ Acquired Med. Armor Plating. 03098_ K-01 Serf collects debris. 03257_ Dropped Autogun. 03257_ Acquired Imp. EM Pulse Cannon. Map ----- +----------------------------------------------------+ | | | | | | | | | | | | | | | | | | | | | | | | | | | | | | | | | ???###????????????####??????? | | ?? ?????????? [ #?????? | | ? ???????? #?????? | | ?""" """???????? ####### | | ??"" ""??????????"" # # | | ??"" ""??????????"" # """ # | | ??? ????????????" [?# """ # | | ??? ???????????? ?# """ # | | ####+##############+### [ # | | w # @ # | | + # | | # # | | #########+####### # """ # | | ????????????????# # "R # | | ###???#?????????+ + """ # | | #?????????####### # | | """ #???????????????####### | | """"" #?????????????????????? | | """"" #?????????????????????? | | #?????????????????????? | | #?????????????????????? | | ????###########???????? | | ??????# #???????? | | #+######### #???????? | | ^ # #???????? | | # #???????? | | """""" # """ """ #???????? | | """""" + """ """ #???????? | | """""" # """ """ #???????? | | """""" # #???????? | | """""" ##########????????? | | """""" #????????? | | """""" #????????? | | """""" #????????? | +----------------------------------------------------+ Best States ------------- Heat Dissipation 34 Energy Generation 10 Energy Capacity 250 Matter Stores 300 Matter Capacity 300 Sight Range 16 Terrain Scan Range 16 Terrain Scan Density 10 Armor Coverage 600 Propulsion Shielding 33 Evasion (%) 40 Targeting Accuracy 8 Recoil Reduction 2 Item Schematics ----------------- None Robot Schematics ------------------ None Fabricated ------------ Nothing Alien Tech Used ----------------- None Achievements -------------- None Challenges ------------ None Game ------ Seed WarpOverloadCompactor Manual? 0 Play Time 00:19:26 Cumulative 218.9 hours Start 2021.01.05 @ 17:24:54 End 2021.01.05 @ 17:44:44 Sessions 1 Manual Loads 0 Difficulty Rogue Special Mode None Game No. 185 Rogue 56 Adventurer 63 Explorer 66 Win Type - Total 12 Types 11/0/0/1/0/0/0/0/0 Lore% 71 Gallery% 80 Achievement% 62 Wizard Run 0 Options --------- ASCII 0 Keyboard 0 Movement Numpad Keybinds 0 Fullscreen 2 Font 18/TerminusBold Map View 76x50 Tactical HUD 1 Map Filters NONE Filters NONE Steam 1 RUN: 54b5c4c5-5d78-4c5f-a57f-10af0f9d97e3